fUSD/lending_fUSD_20250112
["ID","MTS","AMOUNT","RATE_DAILY","PERIOD"]
[348623908,1736683845749,-500.0,9.98e-05,2]
[348623909,1736683845758,-502.42069376,9.98e-05,2]
[348623910,1736683845768,-500.0,9.98e-05,2]
[348623911,1736683845777,-922.47,9.98e-05,2]
[348623912,1736683845786,-500.0,9.98e-05,2]
[348623913,1736683845795,-1320.41,9.98e-05,2]
[348623914,1736683845804,-500.91570543,9.98e-05,2]
[348623915,1736683845814,-246.23008783,9.98e-05,2]
[348623916,1736683845824,-500.0,9.98e-05,2]
[348623917,1736683845834,-503.22358309,9.98e-05,2]
[348623918,1736683845844,-500.0,9.98e-05,2]
[348623919,1736683845853,-1758.07,9.98e-05,2]
[348623920,1736683845863,-501.55914533,9.98e-05,2]
[348623921,1736683845872,-2766.88,9.98e-05,2]
[348623922,1736683845881,-500.0,9.98e-05,2]
[348623923,1736683845890,-1212.22,9.98e-05,2]
[348623924,1736683845898,-500.0,9.98e-05,2]
[348623925,1736683845908,-500.0,9.98e-05,2]
[348623926,1736683845917,-674.44,9.98e-05,2]
[348623927,1736683845927,-9521.95,9.98e-05,2]
[348623928,1736683845936,-651.62,9.98e-05,2]
[348623929,1736683845945,-500.0,9.98e-05,2]
[348623930,1736683845954,-500.0,9.98e-05,2]
[348623931,1736683845963,-793.36,9.98e-05,2]
[348623932,1736683845972,-500.0,9.98e-05,2]
[348623933,1736683845981,-500.0,9.98e-05,2]
[348623934,1736683845991,-500.0,9.98e-05,2]
[348623935,1736683846000,-500.0,9.98e-05,2]
[348623936,1736683846009,-500.0,9.98e-05,2]
[348623937,1736683846018,-195.12331492,9.98e-05,2]
[348623938,1736683846027,-500.0,9.98e-05,2]
[348623939,1736683846036,-500.0,9.98e-05,2]
[348623940,1736683846046,-500.0,9.98e-05,2]
[348623941,1736683846056,-502.35910494,9.98e-05,2]
[348623942,1736683846064,-1219.27,9.98e-05,2]
[348623943,1736683846074,-525.4558418,9.98e-05,2]
[348623944,1736683846083,-500.0,9.98e-05,2]
[348623945,1736683846092,-500.0,9.98e-05,2]
[348623946,1736683846101,-503.4881602,9.98e-05,2]
[348623947,1736683846110,-561.5,9.98e-05,2]
[348623948,1736683846119,-790.9,9.98e-05,2]
[348623949,1736683846128,-500.0,9.98e-05,2]
[348623950,1736683846137,-1327.86,9.98e-05,2]
[348623951,1736683846146,-2664.31,9.98e-05,2]
[348623952,1736683846155,-500.0,9.98e-05,2]
[348623953,1736683846165,-611.92,9.98e-05,2]
[348623954,1736683846174,-249.30522847,9.98e-05,2]
[348623955,1736683846183,-501.66411892,9.98e-05,2]
[348623956,1736683846193,-500.0,9.98e-05,2]
[348623957,1736683846202,-222.16474035,9.98e-05,2]
[348623958,1736683846211,-500.0,9.98e-05,2]
[348623959,1736683846220,-1269.17,9.98e-05,2]
[348623960,1736683846229,-500.0,9.98e-05,2]
[348623961,1736683846239,-500.0,9.98e-05,2]
[348623962,1736683846248,-1001.58,9.98e-05,2]
[348623963,1736683846258,-500.0,9.98e-05,2]
[348623964,1736683846267,-500.0,9.98e-05,2]
[348623965,1736683846278,-500.0,9.98e-05,2]
[348623966,1736683846288,-1039.79,9.98e-05,2]
[348623967,1736683846297,-502.40091197,9.98e-05,2]
[348623968,1736683846307,-962.91,9.98e-05,2]
[348623969,1736683846316,-151.0,9.98e-05,2]
[348623970,1736683846325,-500.0,9.98e-05,2]
[348623971,1736683846334,-2524.91,9.98e-05,2]
[348623972,1736683846343,-151.0,9.98e-05,2]
[348623973,1736683846353,-1987.82,9.98e-05,2]
[348623974,1736683846365,-500.0,9.98e-05,2]
[348623975,1736683846375,-376.62708718,9.98e-05,2]
[348623976,1736683846385,-500.0,9.98e-05,2]
[348623977,1736683846394,-629.79,9.98e-05,2]
[348623978,1736683846403,-4993.58,9.98e-05,2]
[348623979,1736683846412,-500.0,9.98e-05,2]
[348623980,1736683846422,-500.0,9.98e-05,2]
[348623981,1736683846431,-500.0,9.98e-05,2]
[348623982,1736683846441,-500.0,9.98e-05,2]
[348623983,1736683846450,-502.17857011,9.98e-05,2]
[348623984,1736683846459,-500.0,9.98e-05,2]
[348623985,1736683846469,-500.0,9.98e-05,2]
[348623986,1736683846478,-672.69,9.98e-05,2]
[348623987,1736683846487,-314.9341548,9.98e-05,2]
[348623988,1736683846496,-1003.97,9.98e-05,2]
[348623989,1736683846506,-503.69009767,9.98e-05,2]
[348623990,1736683846515,-500.0,9.98e-05,2]
[348623991,1736683846528,-500.0,9.98e-05,2]
[348623992,1736683846541,-1521.24,9.98e-05,2]
[348623993,1736683846550,-648.31,9.98e-05,2]
[348623994,1736683846559,-506.32350944,9.98e-05,2]
[348623995,1736683846570,-501.20910452,9.98e-05,2]
[348623996,1736683846580,-1634.03,9.98e-05,2]
[348623997,1736683846591,-500.0,9.98e-05,2]
[348623998,1736683846601,-500.0,9.98e-05,2]
[348623999,1736683846611,-500.0,9.98e-05,2]
[348624000,1736683846619,-500.0,9.98e-05,2]
[348624001,1736683846628,-503.32887552,9.98e-05,2]
[348624002,1736683846637,-500.0,9.98e-05,2]
[348624003,1736683846646,-500.0,9.98e-05,2]
[348624004,1736683846655,-500.0,9.98e-05,2]
[348624005,1736683846665,-500.0,9.98e-05,2]
[348624006,1736683846674,-731.17,9.98e-05,2]
[348624007,1736683846683,-178.39612811,9.98e-05,2]
[348624008,1736683846692,-1004.57,9.98e-05,2]
[348624009,1736683846701,-500.0,9.98e-05,2]
[348624010,1736683846710,-500.0,9.98e-05,2]
[348624011,1736683846720,-500.0,9.98e-05,2]
[348624012,1736683846729,-500.0,9.98e-05,2]
[348624013,1736683846738,-3394.84,9.98e-05,2]
[348624014,1736683846747,-500.0,9.98e-05,2]
[348624015,1736683846756,-865.34,9.98e-05,2]
[348624016,1736683846766,-575.37,9.98e-05,2]
[348624017,1736683846775,-508.58976617,9.98e-05,2]
[348624018,1736683846784,-500.85303125,9.98e-05,2]
[348624019,1736683846793,-500.0,9.98e-05,2]
[348624020,1736683846802,-500.0,9.98e-05,2]
[348624021,1736683846812,-674.42,9.98e-05,2]
[348624022,1736683846821,-2119.72,9.98e-05,2]
[348624023,1736683846830,-500.0,9.98e-05,2]
[348624024,1736683846839,-500.0,9.98e-05,2]
[348624025,1736683846849,-500.0,9.98e-05,2]
[348624026,1736683846858,-544.3,9.98e-05,2]
[348624027,1736683846868,-505.77,9.98e-05,2]
[348624028,1736683846877,-500.0,9.98e-05,2]
[348624029,1736683846886,-500.0,9.98e-05,2]
[348624030,1736683846895,-801.5,9.98e-05,2]
[348624031,1736683846904,-708.59,9.98e-05,2]
[348624032,1736683846914,-500.0,9.98e-05,2]
[348624033,1736683846923,-415.1775746,9.98e-05,2]
[348624034,1736683846933,-500.0,9.98e-05,2]
[348624035,1736683846942,-188.88711834,9.98e-05,2]
[348624036,1736683846951,-676.91,9.98e-05,2]
[348624037,1736683846961,-500.0,9.98e-05,2]
[348624038,1736683846971,-500.0,9.98e-05,2]
[348624039,1736683846980,-3294.64,9.98e-05,2]
[348624040,1736683846990,-893.4,9.98e-05,2]
[348624041,1736683846999,-500.0,9.98e-05,2]
[348624042,1736683847009,-500.0,9.98e-05,2]
[348624043,1736683847018,-500.0,9.98e-05,2]
[348624044,1736683847027,-519.07,9.98e-05,2]
[348624045,1736683847037,-500.0,9.98e-05,2]
[348624046,1736683847046,-1708.85,9.98e-05,2]
[348624047,1736683847055,-507.00521556,9.98e-05,2]
[348624048,1736683847064,-3745.81,9.98e-05,2]
[348624049,1736683847074,-500.0,9.98e-05,2]
[348624050,1736683847083,-500.0,9.98e-05,2]
[348624051,1736683847092,-1217.02,9.98e-05,2]
[348624052,1736683847102,-507.9765102,9.98e-05,2]
[348624053,1736683847110,-500.0,9.98e-05,2]
[348624054,1736683847120,-500.0,9.98e-05,2]
[348624055,1736683847129,-500.0,9.98e-05,2]
[348624056,1736683847139,-914.74,9.98e-05,2]
[348624057,1736683847149,-500.0,9.98e-05,2]
[348624058,1736683847158,-503.21575671,9.98e-05,2]
[348624059,1736683847167,-643.05,9.98e-05,2]
[348624060,1736683847176,-502.30522425,9.98e-05,2]
[348624061,1736683847186,-500.47849514,9.98e-05,2]
[348624062,1736683847195,-500.0,9.98e-05,2]
[348624063,1736683847205,-500.0,9.98e-05,2]
[348624064,1736683847214,-836.67,9.98e-05,2]
[348624065,1736683847224,-500.0,9.98e-05,2]
[348624066,1736683847233,-586.43039483,9.98e-05,2]
[348624067,1736683847242,-1210.25,9.98e-05,2]
[348624068,1736683847251,-1130.83,9.98e-05,2]
[348624069,1736683847260,-720.75,9.98e-05,2]
[348624070,1736683847269,-500.0,9.98e-05,2]
[348624071,1736683847279,-503.59727648,9.98e-05,2]
[348624072,1736683847288,-500.0,9.98e-05,2]
[348624073,1736683847298,-860.49,9.98e-05,2]
[348624074,1736683847307,-500.0,9.98e-05,2]
[348624075,1736683847316,-795.67,9.98e-05,2]
[348624076,1736683847326,-1480.67,9.98e-05,2]
[348624077,1736683847335,-500.0,9.98e-05,2]
[348624078,1736683847344,-500.0,9.98e-05,2]
[348624079,1736683847354,-500.0,9.98e-05,2]
[348624080,1736683847364,-500.0,9.98e-05,2]
[348624081,1736683847373,-151.0,9.98e-05,2]
[348624082,1736683847383,-151.0,9.98e-05,2]
[348624083,1736683847392,-500.0,9.98e-05,2]
[348624084,1736683847402,-500.0,9.98e-05,2]
[348624085,1736683847413,-500.0,9.98e-05,2]
[348624086,1736683847423,-500.0,9.98e-05,2]
[348624087,1736683847433,-500.0,9.98e-05,2]
[348624088,1736683847443,-500.0,9.98e-05,2]
[348624089,1736683847452,-500.0,9.98e-05,2]
[348624090,1736683847462,-500.0,9.981e-05,2]
[348624091,1736683847471,-500.0,9.981e-05,2]
[348624092,1736683847481,-503.15777776,9.981e-05,2]
[348624093,1736683847490,-500.0,9.981e-05,2]
[348624094,1736683847499,-500.0,9.981e-05,2]
[348624095,1736683847509,-500.0,9.981e-05,2]
[348624096,1736683847519,-500.0,9.981e-05,2]
[348624097,1736683847528,-500.0,9.981e-05,2]
[348624098,1736683847540,-500.0,9.981e-05,2]
[348624099,1736683847549,-500.0,9.981e-05,2]
[348624100,1736683847559,-500.0,9.981e-05,2]
[348624101,1736683847568,-500.0,9.981e-05,2]
[348624102,1736683847577,-500.0,9.981e-05,2]
[348624103,1736683847589,-629.94,9.981e-05,2]
[348624104,1736683847598,-500.0,9.981e-05,2]
[348624105,1736683847608,-500.0,9.981e-05,2]
[348624106,1736683847618,-500.0,9.981e-05,2]
[348624107,1736683847628,-500.0,9.981e-05,2]
[348624108,1736683847637,-500.0,9.981e-05,2]
[348624109,1736683847646,-500.0,9.981e-05,2]
[348624110,1736683847655,-500.0,9.981e-05,2]
[348624111,1736683847665,-500.0,9.981e-05,2]
[348624112,1736683847674,-500.0,9.981e-05,2]
[348624113,1736683847683,-500.0,9.981e-05,2]
[348624114,1736683847693,-500.0,9.981e-05,2]
[348624115,1736683847702,-500.0,9.981e-05,2]
[348624116,1736683847711,-688.37,9.981e-05,2]
[348624117,1736683847720,-500.0,9.981e-05,2]
[348624118,1736683847730,-500.0,9.981e-05,2]
[348624119,1736683847739,-500.0,9.981e-05,2]
[348624120,1736683847748,-500.0,9.981e-05,2]
[348624121,1736683847757,-500.0,9.981e-05,2]
[348624122,1736683847766,-301.85889782,9.981e-05,2]
[348624123,1736683847777,-500.0,9.981e-05,2]
[348624124,1736683847787,-500.0,9.981e-05,2]
[348624125,1736683847796,-500.0,9.981e-05,2]
[348624126,1736683847805,-500.0,9.981e-05,2]
[348624127,1736683847815,-500.0,9.981e-05,2]
[348624128,1736683847824,-500.0,9.981e-05,2]
[348624129,1736683847833,-500.0,9.981e-05,2]
[348624130,1736683847842,-500.0,9.981e-05,2]
[348624131,1736683847851,-500.0,9.981e-05,2]
[348624132,1736683847861,-506.93412562,9.981e-05,2]
[348624133,1736683847871,-500.0,9.981e-05,2]
[348624134,1736683847881,-500.0,9.981e-05,2]
[348624135,1736683847890,-500.0,9.981e-05,2]
[348624136,1736683847900,-500.0,9.981e-05,2]
[348624137,1736683847909,-505.40234004,9.981e-05,2]
[348624138,1736683847919,-204.61484335,9.981e-05,2]
[348624139,1736683847928,-611.48,9.981e-05,2]
[348624140,1736683847938,-500.0,9.981e-05,2]
[348624141,1736683847947,-500.0,9.981e-05,2]
[348624142,1736683847957,-500.0,9.981e-05,2]
[348624143,1736683847966,-500.0,9.981e-05,2]
[348624144,1736683847976,-500.0,9.981e-05,2]
[348624145,1736683847985,-500.0,9.981e-05,2]
[348624146,1736683847995,-500.0,9.981e-05,2]
[348624147,1736683848186,-500.0,9.981e-05,2]
[348624148,1736683848196,-588.00683947,9.981e-05,2]
[348624149,1736683848206,-500.0,9.981e-05,2]
[348624150,1736683848216,-500.0,9.981e-05,2]
[348624151,1736683848225,-500.0,9.981e-05,2]
[348624152,1736683848235,-500.0,9.981e-05,2]
[348624153,1736683848244,-504.54923891,9.981e-05,2]
[348624154,1736683848254,-591.28,9.981e-05,2]
[348624155,1736683848264,-595.20871694,9.981e-05,2]
[348624156,1736683848274,-500.0,9.981e-05,2]
[348624157,1736683848283,-500.0,9.981e-05,2]
[348624158,1736683848293,-513.36778183,9.981e-05,2]
[348624159,1736683848302,-500.0,9.981e-05,2]
[348624160,1736683848312,-561.39,9.981e-05,2]
[348624161,1736683848322,-500.0,9.981e-05,2]
[348624162,1736683848332,-500.0,9.981e-05,2]
[348624163,1736683848342,-500.0,9.981e-05,2]
[348624164,1736683848352,-500.0,9.981e-05,2]
[348624165,1736683848362,-500.0,9.981e-05,2]
[348624166,1736683848372,-507.96,9.981e-05,2]
[348624167,1736683848382,-503.76280648,9.981e-05,2]
[348624168,1736683848392,-405.29430639,9.981e-05,2]
[348624169,1736683848401,-500.0,9.981e-05,2]
[348624170,1736683848410,-500.0,9.981e-05,2]
[348624171,1736683848420,-500.0,9.981e-05,2]
[348624172,1736683848430,-519.84,9.981e-05,2]
[348624173,1736683848439,-500.0,9.981e-05,2]
[348624174,1736683848449,-500.0,9.981e-05,2]
[348624175,1736683848458,-699.47,9.981e-05,2]
[348624176,1736683848468,-500.0,9.981e-05,2]
[348624177,1736683848477,-500.0,9.981e-05,2]
[348624178,1736683848487,-595.36,9.981e-05,2]
[348624179,1736683848496,-500.0,9.981e-05,2]
[348624180,1736683848506,-864.94,9.981e-05,2]
[348624181,1736683848515,-500.0,9.981e-05,2]
[348624182,1736683848524,-500.0,9.981e-05,2]
[348624183,1736683848537,-500.0,9.981e-05,2]
[348624184,1736683848548,-500.0,9.981e-05,2]
[348624185,1736683848557,-300.0,9.981e-05,2]
[348624186,1736683848567,-500.0,9.981e-05,2]
[348624187,1736683848577,-500.0,9.981e-05,2]
[348624188,1736683848587,-500.0,9.981e-05,2]
[348624189,1736683848596,-273.05380242,9.981e-05,2]
[348624190,1736683848605,-500.0,9.981e-05,2]
[348624191,1736683848615,-500.0,9.981e-05,2]
[348624192,1736683848624,-891.28,9.981e-05,2]
[348624193,1736683848634,-500.0,9.981e-05,2]
[348624194,1736683848643,-500.0,9.981e-05,2]
[348624195,1736683848653,-591.62,9.981e-05,2]
[348624196,1736683848662,-654.6,9.981e-05,2]
[348624197,1736683848673,-500.0,9.981e-05,2]
[348624198,1736683848683,-631.96,9.981e-05,2]
[348624199,1736683848692,-718.12,9.981e-05,2]
[348624200,1736683848702,-1447.92,9.981e-05,2]
[348624201,1736683848711,-500.0,9.981e-05,2]
[348624202,1736683848721,-500.0,9.981e-05,2]
[348624203,1736683848731,-713.16,9.981e-05,2]
[348624204,1736683848740,-500.0,9.981e-05,2]
[348624205,1736683848749,-500.0,9.981e-05,2]
[348624206,1736683848759,-591.39,9.981e-05,2]
[348624207,1736683848769,-603.74,9.981e-05,2]
[348624208,1736683848778,-689.39,9.981e-05,2]
[348624209,1736683848788,-1103.91,9.981e-05,2]
[348624210,1736683848798,-500.0,9.981e-05,2]
[348624211,1736683848807,-549.25,9.981e-05,2]
[348624212,1736683848817,-500.0,9.981e-05,2]
[348624213,1736683848827,-516.41,9.981e-05,2]
[348624214,1736683848836,-500.0,9.981e-05,2]
[348624215,1736683848846,-705.34,9.981e-05,2]
[348624216,1736683848855,-500.0,9.981e-05,2]
[348624217,1736683848865,-503.95,9.981e-05,2]
[348624218,1736683848874,-500.0,9.981e-05,2]
[348624219,1736683848884,-572.66,9.981e-05,2]
[348624220,1736683848893,-2470.98,9.981e-05,2]
[348624221,1736683848903,-523.23,9.981e-05,2]
[348624222,1736683848913,-1450.38,9.981e-05,2]
[348624223,1736683848923,-500.0,9.981e-05,2]
[348624224,1736683848933,-500.0,9.981e-05,2]
[348624225,1736683848943,-777.72,9.981e-05,2]
[348624226,1736683848952,-869.22,9.981e-05,2]
[348624227,1736683848962,-2426.7,9.981e-05,2]
[348624228,1736683848971,-502.12273017,9.981e-05,2]
[348624229,1736683848980,-500.0,9.981e-05,2]
[348624230,1736683848989,-500.0,9.981e-05,2]
[348624231,1736683848999,-513.55,9.981e-05,2]
[348624232,1736683849008,-3051.15,9.981e-05,2]
[348624233,1736683849017,-1028.14,9.981e-05,2]
[348624234,1736683849026,-500.0,9.981e-05,2]
[348624235,1736683849036,-551.73,9.981e-05,2]
[348624236,1736683849046,-977.2,9.981e-05,2]
[348624237,1736683849056,-628.2888686,9.981e-05,2]
[348624238,1736683849066,-887.45,9.981e-05,2]
[348624239,1736683849076,-999.15,9.981e-05,2]
[348624240,1736683849085,-962.28,9.981e-05,2]
[348624241,1736683849094,-1441.32,9.981e-05,2]
[348624242,1736683849104,-500.0,9.981e-05,2]
[348624243,1736683849114,-620.67,9.981e-05,2]
[348624244,1736683849124,-1375.22,9.981e-05,2]
[348624245,1736683849133,-500.0,9.981e-05,2]
[348624246,1736683849142,-528.38,9.981e-05,2]
[348624247,1736683849151,-151.0,9.981e-05,2]
[348624248,1736683849161,-151.0,9.981e-05,2]
[348624249,1736683849172,-500.0,9.981e-05,2]
[348624250,1736683849182,-3663.56,9.981e-05,2]
[348624251,1736683849192,-500.0,9.981e-05,2]
[348624252,1736683849202,-500.0,9.981e-05,2]
[348624253,1736683849211,-1534.64,9.981e-05,2]
[348624254,1736683849221,-634.52,9.981e-05,2]
[348624255,1736683849231,-500.0,9.981e-05,2]
[348624256,1736683849240,-2098.56,9.981e-05,2]
[348624257,1736683849249,-500.0,9.981e-05,2]
[348624258,1736683849259,-500.0,9.981e-05,2]
[348624259,1736683849268,-500.0,9.981e-05,2]
[348624260,1736683849278,-732.26,9.981e-05,2]
[348624261,1736683849288,-500.0,9.981e-05,2]
[348624262,1736683849298,-1515.24,9.981e-05,2]
[348624263,1736683849308,-500.0,9.981e-05,2]
[348624264,1736683849318,-500.0,9.981e-05,2]
[348624265,1736683849328,-512.37,9.981e-05,2]
[348624266,1736683849337,-500.0,9.981e-05,2]
[348624267,1736683849347,-1171.41,9.981e-05,2]
[348624268,1736683849357,-151.0,9.981e-05,2]
[348624269,1736683849368,-151.0,9.981e-05,2]
[348624270,1736683849378,-500.0,9.982e-05,2]
[348624271,1736683849388,-494.07727682,9.982e-05,2]
[348624272,1736683849397,-500.0,9.982e-05,2]
[348624273,1736683849407,-168.7819551,9.982e-05,2]
[348624274,1736683849418,-500.42482682,9.982e-05,2]
[348624275,1736683849428,-500.0,9.982e-05,2]
[348624276,1736683849438,-500.58045143,9.982e-05,2]
[348624277,1736683849448,-616.20265721,9.982e-05,2]
[348624278,1736683849459,-500.0,9.982e-05,2]
[348624279,1736683849469,-500.0,9.982e-05,2]
[348624280,1736683849479,-826.07,9.982e-05,2]
[348624281,1736683849489,-613.06,9.982e-05,2]
[348624282,1736683849500,-575.64,9.982e-05,2]
[348624283,1736683849509,-904.52,9.982e-05,2]
[348624284,1736683849520,-500.0,9.982e-05,2]
[348624285,1736683849530,-500.0,9.982e-05,2]
[348624286,1736683849542,-604.37,9.982e-05,2]
[348624287,1736683849552,-500.0,9.982e-05,2]
[348624288,1736683849562,-1100.28,9.982e-05,2]
[348624289,1736683849572,-640.11,9.982e-05,2]
[348624290,1736683849583,-1010.28,9.982e-05,2]
[348624291,1736683849593,-500.0,9.982e-05,2]
[348624292,1736683849602,-1093.09,9.982e-05,2]
[348624293,1736683849612,-500.0,9.982e-05,2]
[348624294,1736683849623,-567.85,9.982e-05,2]
[348624295,1736683849633,-500.0,9.982e-05,2]
[348624296,1736683849642,-500.0,9.982e-05,2]
[348624297,1736683849652,-500.0,9.982e-05,2]
[348624298,1736683849662,-500.0,9.982e-05,2]
[348624299,1736683849672,-3794.35,9.982e-05,2]
[348624300,1736683849682,-1721.65,9.982e-05,2]
[348624301,1736683849692,-2645.03,9.982e-05,2]
[348624302,1736683849701,-1581.52,9.982e-05,2]
[348624303,1736683849711,-1670.42,9.982e-05,2]
[348624304,1736683849720,-500.0,9.982e-05,2]
[348624305,1736683849730,-978.04,9.982e-05,2]
[348624306,1736683849739,-2391.05,9.982e-05,2]
[348624307,1736683849748,-987.24,9.982e-05,2]
[348624308,1736683849757,-151.0,9.982e-05,2]
[348624309,1736683849767,-1300.74,9.983e-05,2]
[348624310,1736683849777,-1553.15,9.983e-05,2]
[348624311,1736683849787,-1693.02,9.983e-05,2]
[348624312,1736683849796,-2561.11,9.983e-05,2]
[348624313,1736683849806,-6780.4,9.983e-05,2]
[348624314,1736683849815,-1198.29,9.983e-05,2]
[348624315,1736683849825,-150.0,9.983e-05,2]
[348624316,1736683849834,-878.25,9.983e-05,2]
[348624317,1736683849844,-2746.21,9.983e-05,2]
[348624318,1736683849853,-500.0,9.983e-05,2]
[348624319,1736683849863,-1051.98,9.983e-05,2]
[348624320,1736683849872,-1343.05,9.983e-05,2]
[348624321,1736683849882,-1881.51,9.983e-05,2]
[348624322,1736683849891,-500.0,9.983e-05,2]
[348624323,1736683849900,-1000.0,9.983e-05,2]
[348624324,1736683849911,-1063.64,9.983e-05,2]
[348624325,1736683849921,-500.0,9.983e-05,2]
[348624326,1736683849931,-2467.45,9.983e-05,2]
[348624327,1736683849941,-2165.32,9.983e-05,2]
[348624328,1736683849950,-178.3961281,9.985e-05,2]
[348624329,1736683849960,-150.0,9.989e-05,2]
[348624330,1736683849970,-178.3961281,9.99e-05,2]
[348624331,1736683849979,-742.0493546,9.992e-05,2]
[348624332,1736683849989,-3371.0654709,9.992e-05,2]
[348624333,1736683849999,-178.3961281,9.995e-05,2]
[348624334,1736683850009,-4403.979,9.999e-05,2]
[348624335,1736683850020,-167.885,9.999e-05,2]
[348624336,1736683850031,-500.0,9.999e-05,2]
[348624337,1736683850042,-857.64,9.999e-05,2]
[348624338,1736683850053,-500.0,9.999e-05,2]
[348624339,1736683850062,-500.0,9.999e-05,2]
[348624340,1736683850072,-500.0,9.999e-05,2]
[348624341,1736683850083,-645.12183656,9.999e-05,2]
[348624342,1736683850092,-500.0,9.999e-05,2]
[348624343,1736683850102,-1088.86,9.999e-05,2]
[348624344,1736683850111,-556.92,9.999e-05,2]
[348624345,1736683850122,-1230.84,9.999e-05,2]
[348624346,1736683850131,-848.71,9.999e-05,2]
[348624347,1736683850141,-1073.0,0.0001,2]
[348624348,1736683850150,-712979.43862629,0.0001,2]
[348624349,1736683850559,-2699.828592,0.0001,2]
[348624350,1736683850642,-3065.62537981,0.0001,2]
[348624351,1736683850659,-382.03969686,0.0001,2]
[348624352,1736683850678,-958.56,0.0001,2]
[348624353,1736683850688,-37642.8563767,0.0001,2]
[348624354,1736683980806,640.28,9.98e-05,7]
[348624357,1736684311616,1057.16,8.219e-05,2]
[348624358,1736684425818,3894.0,0.00023,120]
[348624367,1736684920599,6962.65241137,8e-05,2]
[348624373,1736685032120,-636.27,8.734e-05,2]
[348624374,1736685032130,-250.0,8.755e-05,2]
[348624375,1736685032142,-1488.26517609,8.815e-05,2]
[348624376,1736685032155,-644.666761,8.815e-05,2]
[348624377,1736685032231,-2296.13806291,8.815e-05,2]
[348624378,1736685032240,-250.0,8.885e-05,2]
[348624379,1736685032249,-1000.0,8.892e-05,2]
[348624380,1736685032259,-212.95,8.896e-05,2]
[348624381,1736685032268,-845.26,8.904e-05,2]
[348624382,1736685032277,-150.0,9e-05,2]
[348624383,1736685032286,-150.0,9e-05,2]
[348624384,1736685032296,-150.0,9e-05,2]
[348624385,1736685032306,-150.0,9e-05,2]
[348624386,1736685032316,-150.0,9e-05,2]
[348624387,1736685032326,-150.0,9.083e-05,2]
[348624388,1736685032336,-375.85,9.123e-05,2]
[348624389,1736685032345,-150.0,9.167e-05,2]
[348624390,1736685032355,-150.0,9.167e-05,2]
[348624391,1736685032365,-150.0,9.167e-05,2]
[348624392,1736685032374,-150.0,9.25e-05,2]
[348624393,1736685032384,-300.0,9.3e-05,3]
[348624394,1736685032393,-150.0,9.333e-05,2]
[348624395,1736685032403,-150.0,9.333e-05,2]
[348624396,1736685032413,-150.0,9.333e-05,2]
[348624397,1736685032423,-700.0,9.4e-05,3]
[348624398,1736685032433,-150.0,9.417e-05,2]
[348624399,1736685032443,-150.0,9.5e-05,2]
[348624400,1736685032454,-150.0,9.5e-05,2]
[348624401,1736685032464,-150.0,9.5e-05,2]
[348624402,1736685032475,-1100.0,9.5e-05,3]
[348624403,1736685032484,-150.0,9.583e-05,2]
[348624404,1736685032494,-245.05617842,9.6e-05,3]
[348624405,1736685032505,-1254.94382158,9.6e-05,3]
[348624406,1736685032515,-150.0,9.667e-05,2]
[348624408,1736685032524,-150.0,9.667e-05,2]
[348624410,1736685032534,-150.0,9.667e-05,2]
[348624412,1736685032544,-1800.0,9.7e-05,3]
[348624414,1736685032553,-150.0,9.729e-05,2]
[348624416,1736685032563,-150.0,9.75e-05,2]
[348624418,1736685032572,-150.0,9.789e-05,2]
[348624420,1736685032582,-2433.20893462,9.794e-05,2]
[348624422,1736685032591,-150.0,9.794e-05,2]
[348624424,1736685032601,-1691.3927803,9.8e-05,2]
[348624426,1736685032613,-5056.73125521,9.8e-05,2]
[348624429,1736685032631,-4978.06733953,9.8e-05,2]
[348624433,1736685032656,-450.1191911,9.8e-05,2]
[348624435,1736685032668,-1107.64615845,9.8e-05,2]
[348624499,1736685037940,-2297.51759701,9.8e-05,2]
[348624500,1736685037952,-902.4590757,9.8e-05,2]
[348624501,1736685037963,-1972.34,9.8e-05,2]